fUSD/lending_fUSD_20240714
["ID","MTS","AMOUNT","RATE_DAILY","PERIOD"]
[332055620,1720944664863,-500.0,0.00013808,2]
[332055621,1720944664873,-500.0,0.00013808,2]
[332055622,1720944664883,-500.0,0.00013808,2]
[332055623,1720944664892,-855.07,0.00013808,2]
[332055624,1720944664901,-626.86,0.00013808,2]
[332055625,1720944664910,-500.0,0.00013808,2]
[332055626,1720944664920,-500.0,0.00013808,2]
[332055627,1720944664929,-500.0,0.00013808,2]
[332055628,1720944664938,-500.0,0.00013808,2]
[332055629,1720944664948,-500.0,0.00013808,2]
[332055630,1720944664957,-534.51,0.00013808,2]
[332055631,1720944664966,-688.23,0.00013808,2]
[332055632,1720944664974,-500.0,0.00013808,2]
[332055633,1720944664982,-650.58,0.00013808,2]
[332055634,1720944664991,-1076.79,0.00013808,2]
[332055635,1720944665001,-1035.73,0.00013808,2]
[332055636,1720944665010,-500.0,0.00013808,2]
[332055637,1720944665020,-500.0,0.00013808,2]
[332055638,1720944665029,-500.0,0.00013808,2]
[332055639,1720944665043,-500.0,0.00013808,2]
[332055640,1720944665060,-500.0,0.00013808,2]
[332055641,1720944665074,-558.02,0.00013808,2]
[332055642,1720944665088,-636.95,0.00013808,2]
[332055643,1720944665103,-536.21,0.00013808,2]
[332055644,1720944665117,-656.29,0.00013808,2]
[332055645,1720944665132,-500.0,0.00013808,2]
[332055646,1720944665148,-612.67,0.00013808,2]
[332055647,1720944665162,-500.0,0.00013808,2]
[332055648,1720944665176,-1545.79,0.00013808,2]
[332055649,1720944665191,-742.47,0.00013808,2]
[332055650,1720944665205,-403.64736776,0.00013808,2]
[332055651,1720944665402,-96.35263224,0.00013808,2]
[332055652,1720944665415,-1159.61,0.00013808,2]
[332055653,1720944665428,-537.33,0.00013808,2]
[332055654,1720944665443,-573.62,0.00013808,2]
[332055655,1720944665457,-1906.72,0.00013808,2]
[332055656,1720944665470,-500.0,0.00013808,2]
[332055657,1720944665484,-500.0,0.00013808,2]
[332055658,1720944665497,-500.0,0.00013808,2]
[332055659,1720944665510,-500.0,0.00013808,2]
[332055660,1720944665523,-584.88,0.00013808,2]
[332055661,1720944665536,-514.79,0.00013808,2]
[332055662,1720944665551,-555.56,0.00013808,2]
[332055663,1720944665563,-572.39,0.00013808,2]
[332055664,1720944665575,-757.5,0.00013808,2]
[332055665,1720944665588,-1339.73,0.00013808,2]
[332055666,1720944665602,-500.0,0.00013808,2]
[332055667,1720944665615,-764.15,0.00013808,2]
[332055668,1720944665628,-1239.65,0.00013808,2]
[332055669,1720944665640,-1576.22,0.00013808,2]
[332055670,1720944665653,-623.47,0.00013808,2]
[332055671,1720944665665,-1012.69,0.00013808,2]
[332055672,1720944665677,-500.0,0.00013808,2]
[332055673,1720944665690,-955.24,0.00013808,2]
[332055674,1720944665703,-581.60285758,0.00013808,2]
[332055675,1720944665716,-965.64,0.00013808,2]
[332055676,1720944665728,-1041.62,0.00013808,2]
[332055677,1720944665740,-500.0,0.00013808,2]
[332055678,1720944665753,-1265.69,0.00013808,2]
[332055679,1720944665769,-515.28,0.00013808,2]
[332055680,1720944665781,-969.62,0.00013808,2]
[332055681,1720944665793,-1377.61,0.00013808,2]
[332055682,1720944665807,-973.16,0.00013808,2]
[332055683,1720944665819,-1828.8,0.00013808,2]
[332055684,1720944665832,-500.0,0.00013808,2]
[332055685,1720944665849,-746.21,0.00013808,2]
[332055686,1720944665863,-500.0,0.00013808,2]
[332055687,1720944665876,-549.59,0.00013808,2]
[332055688,1720944665889,-500.0,0.00013808,2]
[332055689,1720944665902,-500.0,0.00013808,2]
[332055690,1720944665916,-588.1,0.00013808,2]
[332055691,1720944665929,-1001.22,0.00013808,2]
[332055692,1720944665941,-500.0,0.00013808,2]
[332055693,1720944665953,-870.2,0.00013808,2]
[332055694,1720944665966,-500.0,0.00013808,2]
[332055695,1720944665979,-568.14,0.00013808,2]
[332055696,1720944665992,-500.0,0.00013808,2]
[332055697,1720944666004,-608.64,0.00013808,2]
[332055698,1720944666017,-549.39,0.00013808,2]
[332055699,1720944666029,-500.0,0.00013808,2]
[332055700,1720944666044,-500.0,0.00013808,2]
[332055701,1720944666057,-727.25,0.00013808,2]
[332055702,1720944666069,-500.0,0.00013808,2]
[332055703,1720944666081,-500.0,0.00013808,2]
[332055704,1720944666093,-739.32,0.00013808,2]
[332055705,1720944666105,-1171.55,0.00013808,2]
[332055706,1720944666117,-1231.66,0.00013808,2]
[332055707,1720944666129,-500.0,0.00013808,2]
[332055708,1720944666141,-500.0,0.00013808,2]
[332055709,1720944666154,-8626.36,0.00013808,2]
[332055710,1720944666166,-500.0,0.00013808,2]
[332055711,1720944666179,-500.0,0.00013808,2]
[332055712,1720944666191,-500.0,0.00013808,2]
[332055713,1720944666203,-908.97,0.00013808,2]
[332055714,1720944666216,-500.0,0.00013808,2]
[332055715,1720944666228,-500.0,0.00013808,2]
[332055716,1720944666241,-1685.54,0.00013808,2]
[332055717,1720944666253,-802.45,0.00013808,2]
[332055718,1720944666265,-992.06,0.00013808,2]
[332055719,1720944666277,-1561.02,0.00013808,2]
[332055720,1720944666290,-812.48,0.00013808,2]
[332055721,1720944666302,-500.0,0.00013808,2]
[332055722,1720944666315,-1235.59,0.00013808,2]
[332055723,1720944666326,-500.0,0.00013808,2]
[332055724,1720944666338,-500.0,0.00013808,2]
[332055725,1720944666351,-979.82,0.00013808,2]
[332055726,1720944666363,-497.65182835,0.00013808,2]
[332055727,1720944666376,-500.0,0.00013808,2]
[332055728,1720944666388,-338.25615205,0.00013808,2]
[332055729,1720944666402,-1004.21,0.00013808,2]
[332055730,1720944666415,-1016.96,0.00013808,2]
[332055731,1720944666427,-500.0,0.00013808,2]
[332055732,1720944666439,-1044.15,0.00013808,2]
[332055733,1720944666451,-1311.36,0.00013808,2]
[332055734,1720944666463,-500.0,0.00013808,2]
[332055735,1720944666475,-500.0,0.00013808,2]
[332055736,1720944666487,-1294.38,0.00013808,2]
[332055737,1720944666500,-672.14,0.00013808,2]
[332055738,1720944666512,-500.0,0.00013808,2]
[332055739,1720944666524,-707.72,0.00013808,2]
[332055740,1720944666537,-726.21,0.00013808,2]
[332055741,1720944666549,-500.0,0.00013808,2]
[332055742,1720944666561,-1022.59,0.00013808,2]
[332055743,1720944666574,-1251.7,0.00013808,2]
[332055744,1720944666586,-500.0,0.00013808,2]
[332055745,1720944666597,-500.0,0.00013808,2]
[332055746,1720944666609,-1131.2,0.00013808,2]
[332055747,1720944666621,-728.87,0.00013808,2]
[332055748,1720944666633,-577.16,0.00013808,2]
[332055749,1720944666646,-1299.6,0.00013808,2]
[332055750,1720944666658,-500.0,0.00013808,2]
[332055751,1720944666672,-500.0,0.00013808,2]
[332055752,1720944666683,-1018.01,0.00013808,2]
[332055753,1720944666694,-3892.56,0.00013808,2]
[332055754,1720944666704,-500.0,0.00013808,2]
[332055755,1720944666713,-1493.87,0.00013808,2]
[332055756,1720944666723,-826.16,0.00013808,2]
[332055757,1720944666733,-596.53,0.00013808,2]
[332055758,1720944666742,-637.56,0.00013808,2]
[332055759,1720944666751,-1688.78,0.00013808,2]
[332055760,1720944666764,-500.0,0.00013808,2]
[332055761,1720944666774,-773.37,0.00013808,2]
[332055762,1720944666784,-1311.12,0.00013808,2]
[332055763,1720944666795,-500.0,0.00013808,2]
[332055764,1720944666805,-623.47,0.00013808,2]
[332055765,1720944666815,-500.0,0.00013808,2]
[332055766,1720944666824,-4364.13,0.00013808,2]
[332055767,1720944666835,-1332.21,0.00013808,2]
[332055768,1720944666845,-1655.02,0.00013808,2]
[332055769,1720944666855,-500.0,0.00013808,2]
[332055770,1720944666865,-670.9,0.00013808,2]
[332055771,1720944666875,-1396.58,0.00013808,2]
[332055772,1720944666885,-672.79,0.00013808,2]
[332055773,1720944666895,-571.84,0.00013808,2]
[332055774,1720944666905,-500.0,0.00013808,2]
[332055775,1720944666916,-3898.98,0.00013808,2]
[332055776,1720944666925,-2643.16,0.00013808,2]
[332055777,1720944666936,-601.97,0.00013808,2]
[332055778,1720944666946,-500.0,0.00013808,2]
[332055779,1720944666956,-2195.08,0.00013808,2]
[332055780,1720944666966,-500.0,0.00013808,2]
[332055781,1720944666975,-828.77,0.00013808,2]
[332055782,1720944666985,-500.0,0.00013808,2]
[332055783,1720944666994,-636.92,0.00013808,2]
[332055784,1720944667005,-500.0,0.00013808,2]
[332055785,1720944667015,-1608.4,0.00013808,2]
[332055786,1720944667026,-500.0,0.00013808,2]
[332055787,1720944667038,-809.07,0.00013808,2]
[332055788,1720944667049,-500.0,0.00013808,2]
[332055789,1720944667060,-500.0,0.00013808,2]
[332055790,1720944667072,-1712.22,0.00013808,2]
[332055791,1720944667082,-500.0,0.00013808,2]
[332055792,1720944667093,-1293.57,0.00013808,2]
[332055793,1720944667102,-672.88,0.00013808,2]
[332055794,1720944667113,-500.0,0.00013808,2]
[332055795,1720944667124,-500.0,0.00013808,2]
[332055796,1720944667135,-570.52,0.00013808,2]
[332055797,1720944667147,-500.0,0.00013808,2]
[332055798,1720944667158,-1374.17,0.00013808,2]
[332055799,1720944667167,-500.0,0.00013808,2]
[332055800,1720944667179,-288.52553147,0.00013808,2]
[332055801,1720944667188,-500.0,0.00013808,2]
[332055802,1720944667199,-660.62,0.00013808,2]
[332055803,1720944667210,-500.0,0.00013808,2]
[332055804,1720944667222,-500.0,0.00013808,2]
[332055805,1720944667233,-479.53619556,0.00013808,2]
[332055806,1720944667243,-916.16,0.00013808,2]
[332055807,1720944667254,-3321.54,0.00013808,2]
[332055808,1720944667265,-557.41,0.00013808,2]
[332055809,1720944667731,-500.0,0.00013808,2]
[332055810,1720944667754,-500.0,0.00013808,2]
[332055811,1720944667776,-1225.96,0.00013808,2]
[332055812,1720944667787,-364.40324563,0.00013808,2]
[332055813,1720944667797,-500.0,0.00013808,2]
[332055814,1720944667808,-500.0,0.00013808,2]
[332055815,1720944667818,-500.0,0.00013808,2]
[332055816,1720944667826,-1555.82,0.00013808,2]
[332055817,1720944667839,-500.0,0.00013808,2]
[332055818,1720944667849,-500.0,0.00013808,2]
[332055819,1720944667858,-500.0,0.00013808,2]
[332055820,1720944667867,-1050.22,0.00013808,2]
[332055821,1720944667877,-666.72,0.00013808,2]
[332055822,1720944667887,-759.86,0.00013808,2]
[332055823,1720944667896,-500.0,0.00013808,2]
[332055824,1720944667906,-500.0,0.00013808,2]
[332055825,1720944667916,-500.0,0.00013808,2]
[332055826,1720944667925,-672.62,0.00013808,2]
[332055827,1720944667934,-500.0,0.00013808,2]
[332055828,1720944667943,-1156.45,0.00013808,2]
[332055829,1720944667952,-872.09,0.00013808,2]
[332055830,1720944667962,-500.0,0.00013808,2]
[332055831,1720944667972,-7925.43,0.00013808,2]
[332055832,1720944667982,-5913.14,0.00013808,2]
[332055833,1720944667991,-500.0,0.00013808,2]
[332055834,1720944668001,-500.0,0.00013808,2]
[332055835,1720944668010,-971.84,0.00013808,2]
[332055836,1720944668019,-843.25,0.00013808,2]
[332055837,1720944668028,-635.59599211,0.00013808,2]
[332055838,1720944668037,-500.0,0.00013808,2]
[332055839,1720944668046,-500.0,0.00013808,2]
[332055840,1720944668056,-665.88,0.00013808,2]
[332055841,1720944668066,-500.0,0.00013808,2]
[332055842,1720944668075,-1558.59,0.00013808,2]
[332055843,1720944668084,-500.0,0.00013808,2]
[332055844,1720944668093,-1300.15,0.00013808,2]
[332055845,1720944668103,-939.77,0.00013808,2]
[332055846,1720944668112,-500.0,0.00013808,2]
[332055847,1720944668121,-500.0,0.00013808,2]
[332055848,1720944668130,-1088.57,0.00013808,2]
[332055849,1720944668140,-984.05,0.00013808,2]
[332055850,1720944668150,-500.0,0.00013808,2]
[332055851,1720944668160,-552.77,0.00013808,2]
[332055852,1720944668170,-500.0,0.00013808,2]
[332055853,1720944668180,-572.45,0.00013808,2]
[332055854,1720944668189,-500.0,0.00013808,2]
[332055855,1720944668198,-500.0,0.00013808,2]
[332055856,1720944668207,-500.0,0.00013808,2]
[332055857,1720944668217,-1115.08,0.00013808,2]
[332055858,1720944668226,-933.01,0.00013808,2]
[332055859,1720944668235,-500.0,0.00013808,2]
[332055860,1720944668245,-500.0,0.00013808,2]
[332055861,1720944668254,-500.0,0.00013808,2]
[332055862,1720944668263,-460.86410198,0.00013808,2]
[332055863,1720944668272,-500.0,0.00013808,2]
[332055864,1720944668282,-220.67,0.00013808,3]
[332055865,1720944668291,-1156.422,0.0001383,2]
[332055866,1720944668300,-500.0,0.00013835,2]
[332055867,1720944668311,-500.0,0.00013835,2]
[332055868,1720944668321,-208.949865,0.00013859,2]
[332055869,1720944668331,-270.484553,0.00013859,2]
[332055870,1720944668341,-420.729276,0.00013859,2]
[332055871,1720944668350,-208.949865,0.00013859,2]
[332055872,1720944668359,-210.364638,0.00013859,2]
[332055873,1720944668368,-208.949866,0.00013859,2]
[332055874,1720944668378,-208.949865,0.00013859,2]
[332055875,1720944668387,-164.130129,0.00013859,2]
[332055876,1720944668396,-210.364638,0.00013859,2]
[332055877,1720944668406,-196.956154,0.00013859,2]
[332055878,1720944668415,-242.672148,0.00013859,2]
[332055879,1720944668424,-164.130128,0.00013859,2]
[332055880,1720944668434,-150.071927,0.00013859,2]
[332055881,1720944668444,-169.106029,0.00013859,2]
[332055882,1720944668453,-181.575577,0.00013859,2]
[332055883,1720944668462,-181.575577,0.00013859,2]
[332055884,1720944668471,-500.0,0.00013862,2]
[332055885,1720944668481,-500.0,0.00013862,2]
[332055886,1720944668490,-500.0,0.00013862,2]
[332055887,1720944668499,-500.0,0.00013863,2]
[332055888,1720944668508,-500.0,0.00013863,2]
[332055889,1720944668517,-1009.99,0.00013863,2]
[332055890,1720944668526,-748.01,0.00013863,2]
[332055891,1720944668535,-500.0,0.00013863,2]
[332055892,1720944668544,-500.0,0.00013863,2]
[332055893,1720944668554,-601.47,0.00013863,2]
[332055894,1720944668563,-500.0,0.00013863,2]
[332055895,1720944668574,-663.32,0.00013863,2]
[332055896,1720944668583,-500.0,0.00013863,2]
[332055897,1720944668593,-500.0,0.00013863,2]
[332055898,1720944668602,-500.0,0.00013863,2]
[332055899,1720944668611,-500.0,0.00013863,2]
[332055900,1720944668621,-500.0,0.00013863,2]
[332055901,1720944668631,-569.17,0.00013863,2]
[332055902,1720944668640,-500.0,0.00013863,2]
[332055903,1720944668649,-500.0,0.00013863,2]
[332055904,1720944668658,-244.75378593,0.00013863,2]
[332055905,1720944668668,-500.0,0.00013863,2]
[332055906,1720944668677,-815.43,0.00013863,2]
[332055907,1720944668687,-500.0,0.00013863,2]
[332055908,1720944668697,-1215.41,0.00013863,2]
[332055909,1720944668706,-500.0,0.00013863,2]
[332055910,1720944668716,-866.27,0.00013863,2]
[332055911,1720944668725,-500.0,0.00013863,2]
[332055912,1720944668734,-778.19,0.00013863,2]
[332055913,1720944668743,-500.0,0.00013863,2]
[332055914,1720944668754,-500.0,0.00013863,2]
[332055915,1720944668766,-592.86,0.00013863,2]
[332055916,1720944668775,-563.84,0.00013863,2]
[332055917,1720944668784,-500.0,0.00013863,2]
[332055918,1720944668795,-500.0,0.00013863,2]
[332055919,1720944668804,-500.0,0.00013863,2]
[332055920,1720944668813,-606.65,0.00013863,2]
[332055921,1720944668823,-500.0,0.00013863,2]
[332055922,1720944668833,-500.0,0.00013863,2]
[332055923,1720944668842,-500.0,0.00013863,2]
[332055924,1720944668851,-500.0,0.00013863,2]
[332055925,1720944668860,-500.0,0.00013863,2]
[332055926,1720944668870,-500.0,0.00013863,2]
[332055927,1720944668879,-721.1,0.00013863,2]
[332055928,1720944668888,-1149.18,0.00013863,2]
[332055929,1720944668897,-548.73,0.00013863,2]
[332055930,1720944668906,-500.0,0.00013863,2]
[332055931,1720944668916,-500.0,0.00013863,2]
[332055932,1720944668925,-500.0,0.00013863,2]
[332055933,1720944668934,-500.0,0.00013863,2]
[332055934,1720944668943,-500.0,0.00013863,2]
[332055935,1720944668952,-500.0,0.00013863,2]
[332055936,1720944668961,-500.0,0.00013863,2]
[332055937,1720944668971,-558.59,0.00013863,2]
[332055938,1720944668981,-163.17250942,0.00013863,2]
[332055939,1720944668990,-161.68825759,0.00013863,2]
[332055940,1720944668999,-558.47,0.00013863,2]
[332055941,1720944669008,-1015.08,0.00013863,2]
[332055942,1720944669018,-500.0,0.00013863,2]
[332055943,1720944669027,-500.0,0.00013863,2]
[332055944,1720944669036,-500.0,0.00013863,2]
[332055945,1720944669046,-500.0,0.00013863,2]
[332055946,1720944669055,-500.0,0.00013863,2]
[332055947,1720944669063,-500.0,0.00013863,2]
[332055948,1720944669073,-858.95,0.00013863,2]
[332055949,1720944669082,-546.039711,0.00013863,2]
[332055950,1720944669091,-500.0,0.00013863,2]
[332055951,1720944669101,-335.29843547,0.00013863,2]
[332055952,1720944669110,-500.0,0.00013863,2]
[332055953,1720944669119,-833.29,0.00013863,2]
[332055954,1720944669128,-500.0,0.00013863,2]
[332055955,1720944669137,-547.08,0.00013863,2]
[332055956,1720944669147,-849.93,0.00013863,2]
[332055957,1720944669156,-500.0,0.00013863,2]
[332055958,1720944669165,-500.0,0.00013863,2]
[332055959,1720944669173,-849.44,0.00013863,2]
[332055960,1720944669183,-500.0,0.00013863,2]
[332055961,1720944669192,-753.53,0.00013863,2]
[332055962,1720944669201,-500.0,0.00013863,2]
[332055963,1720944669210,-500.0,0.00013863,2]
[332055964,1720944669219,-599.13,0.00013863,2]
[332055965,1720944669228,-500.0,0.00013863,2]
[332055966,1720944669238,-512.46,0.00013863,2]
[332055967,1720944669247,-500.0,0.00013863,2]
[332055968,1720944669256,-1750.97,0.00013863,2]
[332055969,1720944669265,-155.62,0.00013863,2]
[332055970,1720944669275,-500.0,0.00013863,2]
[332055971,1720944669284,-500.0,0.00013863,2]
[332055972,1720944669296,-589.36,0.00013863,2]
[332055973,1720944669306,-500.0,0.00013863,2]
[332055974,1720944669316,-554.39,0.00013863,2]
[332055975,1720944669327,-511.06,0.00013863,2]
[332055976,1720944669338,-772.12,0.00013863,2]
[332055977,1720944669351,-500.0,0.00013863,2]
[332055978,1720944669361,-371.05,0.00013863,2]
[332055979,1720944669372,-1184.16,0.00013863,2]
[332055980,1720944669382,-809.04,0.00013863,2]
[332055981,1720944669392,-500.0,0.00013863,2]
[332055982,1720944669401,-500.0,0.00013863,2]
[332055983,1720944669413,-1032.46,0.00013863,2]
[332055984,1720944669422,-667.84,0.00013863,2]
[332055985,1720944669432,-500.0,0.00013863,2]
[332055986,1720944669443,-694.11,0.00013863,2]
[332055987,1720944669453,-500.0,0.00013863,2]
[332055988,1720944669464,-500.0,0.00013863,2]
[332055989,1720944669480,-1121.88,0.00013863,2]
[332055990,1720944669496,-500.0,0.00013863,2]
[332055991,1720944669507,-813.31,0.00013863,2]
[332055992,1720944669517,-1014.42,0.00013863,2]
[332055993,1720944669528,-786.42,0.00013863,2]
[332055994,1720944669539,-800.09,0.00013863,2]
[332055995,1720944669552,-1093.3,0.00013863,2]
[332055996,1720944669562,-599.67,0.00013863,2]
[332055997,1720944669572,-500.0,0.00013863,2]
[332055998,1720944669584,-500.0,0.00013863,2]
[332055999,1720944669595,-500.0,0.00013863,2]
[332056000,1720944669606,-500.0,0.00013863,2]
[332056001,1720944669616,-530.99,0.00013863,2]
[332056002,1720944669626,-1387.36,0.00013863,2]
[332056003,1720944669637,-649.3,0.00013863,2]
[332056004,1720944669648,-657.73,0.00013863,2]
[332056005,1720944669658,-500.0,0.00013863,2]
[332056006,1720944669667,-1492.04,0.00013863,2]
[332056007,1720944669677,-500.0,0.00013863,2]
[332056008,1720944669686,-500.0,0.00013863,2]
[332056009,1720944669696,-500.0,0.00013863,2]
[332056010,1720944669706,-500.0,0.00013863,2]
[332056011,1720944669716,-1701.49,0.00013863,2]
[332056012,1720944669725,-500.0,0.00013863,2]
[332056013,1720944669735,-500.0,0.00013863,2]
[332056014,1720944669745,-1541.23,0.00013863,2]
[332056015,1720944669759,-1346.98,0.00013863,2]
[332056016,1720944669769,-655.91,0.00013863,2]
[332056017,1720944669779,-712.03,0.00013863,2]
[332056018,1720944669789,-500.0,0.00013863,2]
[332056019,1720944669799,-500.0,0.00013863,2]
[332056020,1720944669810,-500.0,0.00013863,2]
[332056021,1720944669820,-538.67,0.00013863,2]
[332056022,1720944669831,-500.0,0.00013863,2]
[332056023,1720944669841,-500.0,0.00013863,2]
[332056024,1720944669851,-496.29611734,0.00013863,2]
[332056025,1720944669861,-500.0,0.00013863,2]
[332056026,1720944669871,-500.0,0.00013863,2]
[332056027,1720944669882,-1062.54,0.00013863,2]
[332056028,1720944669891,-500.0,0.00013863,2]
[332056029,1720944669901,-903.04,0.00013863,2]
[332056030,1720944669911,-500.0,0.00013863,2]
[332056031,1720944669922,-500.0,0.00013863,2]
[332056032,1720944669932,-769.95,0.00013863,2]
[332056033,1720944669942,-500.0,0.00013863,2]
[332056034,1720944669953,-500.0,0.00013863,2]
[332056035,1720944669964,-500.0,0.00013863,2]
[332056036,1720944669975,-1866.33,0.00013863,2]
[332056037,1720944669985,-500.0,0.00013863,2]
[332056038,1720944669995,-1053.38,0.00013863,2]
[332056039,1720944670004,-568.17,0.00013863,2]
[332056040,1720944670014,-1330.01,0.00013863,2]
[332056041,1720944670024,-845.25,0.00013863,2]
[332056042,1720944670034,-500.0,0.00013863,2]
[332056043,1720944670043,-500.0,0.00013863,2]
[332056044,1720944670054,-500.0,0.00013863,2]
[332056045,1720944670063,-945.63,0.00013863,2]
[332056046,1720944670073,-500.0,0.00013863,2]
[332056047,1720944670083,-510.21,0.00013863,2]
[332056048,1720944670093,-633.73,0.00013863,2]
[332056049,1720944670102,-500.0,0.00013863,2]
[332056050,1720944670112,-500.0,0.00013863,2]
[332056051,1720944670122,-500.0,0.00013863,2]
[332056052,1720944670132,-719.5,0.00013863,2]
[332056053,1720944670142,-1912.05,0.00013863,2]
[332056054,1720944670152,-688.9,0.00013863,2]
[332056055,1720944670161,-500.0,0.00013863,2]
[332056056,1720944670171,-500.0,0.00013863,2]
[332056057,1720944670181,-1174.26,0.00013863,2]
[332056058,1720944670190,-500.0,0.00013863,2]
[332056059,1720944670200,-500.0,0.00013863,2]
[332056060,1720944670210,-500.0,0.00013863,2]
[332056061,1720944670219,-1441.88,0.00013863,2]
[332056062,1720944670229,-500.0,0.00013863,2]
[332056063,1720944670239,-500.0,0.00013863,2]
[332056064,1720944670249,-767.19,0.00013863,2]
[332056065,1720944670258,-500.0,0.00013863,2]
[332056066,1720944670269,-500.0,0.00013863,2]
[332056067,1720944670279,-500.0,0.00013863,2]
[332056068,1720944670289,-500.0,0.00013863,2]
[332056069,1720944670299,-748.28,0.00013863,2]
[332056070,1720944670309,-500.0,0.00013863,2]
[332056071,1720944670319,-500.0,0.00013863,2]
[332056072,1720944670329,-500.0,0.00013863,2]
[332056073,1720944670340,-1008.47,0.00013863,2]
[332056074,1720944670352,-500.0,0.00013863,2]
[332056075,1720944670364,-500.0,0.00013863,2]
[332056076,1720944670375,-500.0,0.00013863,2]
[332056077,1720944670387,-500.0,0.00013863,2]
[332056078,1720944670398,-1243.18,0.00013863,2]
[332056079,1720944670408,-500.0,0.00013863,2]
[332056080,1720944670417,-530.35,0.00013863,2]
[332056081,1720944670427,-500.0,0.00013863,2]
[332056082,1720944670436,-755.5,0.00013863,2]
[332056083,1720944670446,-500.0,0.00013863,2]
[332056084,1720944670455,-806.5,0.00013863,2]
[332056085,1720944670465,-1123.18,0.00013863,2]
[332056086,1720944670475,-500.0,0.00013863,2]
[332056087,1720944670484,-500.0,0.00013863,2]
[332056088,1720944670494,-585.19,0.00013863,2]
[332056089,1720944670505,-500.0,0.00013863,2]
[332056090,1720944670516,-704.83,0.00013863,2]
[332056091,1720944670526,-824.44,0.00013863,2]
[332056092,1720944670536,-500.0,0.00013863,2]
[332056093,1720944670547,-500.0,0.00013863,2]
[332056094,1720944670557,-1099.22,0.00013863,2]
[332056095,1720944670567,-500.0,0.00013863,2]
[332056096,1720944670577,-500.0,0.00013863,2]
[332056097,1720944670589,-500.0,0.00013863,2]
[332056098,1720944670600,-500.0,0.00013863,2]
[332056099,1720944670611,-500.0,0.00013863,2]
[332056100,1720944670622,-500.0,0.00013863,2]
[332056101,1720944670632,-826.96,0.00013863,2]
[332056102,1720944670642,-500.0,0.00013863,2]
[332056103,1720944670652,-500.0,0.00013863,2]
[332056104,1720944670662,-500.0,0.00013863,2]
[332056105,1720944670672,-500.0,0.00013863,2]
[332056106,1720944670682,-900.78,0.00013863,2]
[332056107,1720944670692,-1434.38,0.00013863,2]
[332056108,1720944670702,-911.12,0.00013863,2]
[332056109,1720944670713,-500.0,0.00013863,2]
[332056110,1720944670722,-500.0,0.00013863,2]
[332056111,1720944670733,-231.4,0.00013863,2]
[332056112,1720944670742,-501.91,0.00013863,2]
[332056113,1720944670751,-661.38,0.00013863,2]
[332056114,1720944670765,-1069.2,0.00013863,2]
[332056115,1720944670775,-500.0,0.00013863,2]
[332056116,1720944670784,-500.0,0.00013863,2]
[332056117,1720944670794,-337.48,0.00013863,2]
[332056118,1720944670807,-165.96,0.00013863,2]
[332056119,1720944670817,-500.0,0.00013863,2]